bitfinex/quotes_SOLUSD_20260310
["timestamp","ask_amount","ask_price","bid_price","bid_amount"]
[1773137399619,2.92554633,87.358,87.336,2.9428909]
[1773137401608,11.44727955,87.357,87.336,2.9428909]
[1773137402317,2.92554633,87.356,87.332,2.9428909]
[1773137402903,2.92554633,87.356,87.334,2.9428909]
[1773137403098,4.02692278,87.36,87.334,2.9428909]
[1773137403613,2.92554633,87.362,87.334,2.9428909]
[1773137403817,4.02692278,87.36,87.334,2.9428909]
[1773137404022,2.90781179,87.359,87.334,2.9428909]
[1773137405301,11.44714851,87.358,87.336,2.89048041]
[1773137405705,2.90781179,87.362,87.336,2.89048041]
[1773137409213,14.3545672,87.361,87.338,2.89048041]
[1773137409407,2.90781179,87.36,87.338,2.89048041]
[1773137410337,11.44661456,87.363,87.338,2.89048041]
[1773137410517,2.90781179,87.365,87.341,2.89048041]
[1773137410714,2.90781179,87.364,87.341,2.89048041]
[1773137411832,2.90781179,87.362,87.336,2.89048041]
[1773137412033,2.90781179,87.359,87.336,2.89048041]
[1773137414227,2.90781179,87.357,87.336,2.89048041]
[1773137414530,2.90781179,87.357,87.337,11.44990095]
[1773137414709,2.90781179,87.357,87.338,2.89048041]
[1773137415533,2.90781179,87.376,87.338,2.89048041]
[1773137415737,2.82120519,87.369,87.338,2.89048041]
[1773137415913,2.90781179,87.359,87.33,0.2]
[1773137416234,2.90781179,87.359,87.33,3.09048041]
[1773137416412,2.90781179,87.357,87.331,11.45068761]
[1773137416736,2.90781179,87.357,87.332,2.89048041]
[1773137417430,2.90781179,87.361,87.332,2.89048041]
[1773137418938,2.90781179,87.359,87.334,2.89048041]
[1773137420238,2.90781179,87.359,87.335,11.45016316]
[1773137420432,2.90781179,87.359,87.336,2.89048041]
[1773137421640,11.44714851,87.358,87.336,2.89048041]
[1773137421822,2.90781179,87.357,87.336,2.89048041]
[1773137423640,11.44741059,87.356,87.336,2.89048041]
[1773137425239,2.90781179,87.356,87.336,2.89048041]
[1773137427638,11.44754164,87.355,87.336,2.89048041]
[1773137428028,2.90781179,87.354,87.336,2.89048041]
[1773137428620,2.90781179,87.354,87.338,2.89048041]
[1773137429639,11.44780373,87.353,87.33,0.2]
[1773137429826,2.90781179,87.352,87.33,0.2]
[1773137430023,2.90781179,87.352,87.33,3.09048041]
[1773137430839,2.90781179,87.352,87.331,2.89048041]
[1773137431728,2.90781179,87.352,87.3,0.2]
[1773137431729,2.90781179,87.347,87.302,2.89048041]
[1773137432640,2.90781179,87.339,87.302,2.89048041]
[1773137432858,2.90781179,87.337,87.304,2.89048041]
[1773137434829,2.8877447,87.347,87.313,3.14424188]
[1773137438348,4.0308702,87.4,87.321,3.14424188]
[1773137438349,2.8877447,87.352,87.321,3.14424188]
[1773137440668,14.33572301,87.352,87.323,3.14424188]
[1773137441672,14.33572301,87.352,87.32,4.0308702]
[1773137441673,14.33572301,87.352,87.325,3.14424188]
[1773137441870,2.8877447,87.351,87.325,3.14424188]
[1773137443266,2.8877447,87.366,87.327,3.14424188]
[1773137443573,2.8877447,87.359,87.327,3.14424188]
[1773137443770,2.8877447,87.359,87.326,40.07970134]
[1773137443771,11.44660893,87.363,87.331,3.14424188]
[1773137444264,2.8877447,87.362,87.331,3.14424188]
[1773137444653,11.44660893,87.363,87.311,3.14424188]
[1773137444654,4.0308702,87.35,87.311,3.14424188]
[1773137444981,3.12040324,87.339,87.312,3.08881866]
[1773137445267,11.44976985,87.338,87.313,11.45304822]
[1773137445456,3.12040324,87.337,87.314,3.08881866]
[1773137447579,3.12040324,87.337,87.316,3.08881866]
[1773137447990,3.12092697,87.335,87.316,3.08881866]
[1773137449683,11.45029427,87.334,87.316,3.08881866]
[1773137452161,3.12159762,87.329,87.3,0.2]
[1773137452469,3.12176049,87.325,87.302,3.08881866]
[1773137454385,11.45160551,87.324,87.302,3.08881866]
[1773137455076,3.12208066,87.341,87.311,3.08881866]
[1773137455271,11.44950767,87.34,87.312,3.18228332]
[1773137455579,11.44845903,87.348,87.321,3.18228332]
[1773137456882,4.0308702,87.35,87.321,3.18228332]
[1773137458285,4.0308702,87.35,87.323,3.18228332]
[1773137458970,11.44832797,87.349,87.323,3.18228332]
[1773137460888,11.44701747,87.359,87.331,3.18228332]
[1773137461080,4.0308702,87.36,87.331,3.18228332]
[1773137461870,28.61668033,87.362,87.331,3.18228332]
[1773137462882,28.61668033,87.362,87.332,3.18228332]
[1773137463088,28.61668033,87.362,87.334,3.18228332]
[1773137464074,28.61668033,87.362,87.336,3.18228332]
[1773137465279,11.44570728,87.369,87.336,3.18228332]
[1773137465780,40.05997549,87.369,87.336,3.18228332]
[1773137466996,4.0308702,87.36,87.336,3.18228332]
[1773137468791,11.44701747,87.359,87.336,3.18228332]
[1773137469695,11.44701747,87.359,87.338,3.18228332]
[1773137470092,28.61426821,87.369,87.338,3.18228332]
[1773137470897,11.44583829,87.368,87.341,3.18228332]
[1773137473308,40.05540441,87.379,87.35,4.0308702]
[1773137473513,28.6081447,87.388,87.351,3.18228332]
[1773137473680,4.0308702,87.38,87.351,3.18228332]
[1773137475497,11.44439739,87.379,87.353,3.18228332]
[1773137482017,4.1308702,87.44,87.353,3.18228332]
[1773137482018,4.0308702,87.38,87.353,3.18228332]
[1773137483605,40.0508073,87.389,87.353,3.18228332]
[1773137483812,4.0308702,87.38,87.34,4.0308702]
[1773137483994,4.0308702,87.38,87.323,62.8]
[1773137483995,4.0308702,87.37,87.332,3.18228332]
[1773137484619,4.0308702,87.37,87.341,3.18228332]
[1773137484912,40.05539087,87.379,87.341,3.18228332]
[1773137486913,40.05539087,87.379,87.34,4.5]
[1773137486914,40.05539087,87.379,87.343,3.18228332]
[1773137489412,40.05539087,87.379,87.345,3.18228332]
[1773137489799,11.44439739,87.379,87.345,3.18228332]
[1773137492811,40.04485023,87.402,87.351,3.18228332]
[1773137493016,4.0308702,87.4,87.361,3.18228332]
[1773137493616,4.02579369,87.4,87.361,3.18228332]
[1773137493921,40.04622478,87.399,87.362,3.18228332]
[1773137494296,4.02579369,87.39,87.362,3.18228332]
[1773137494500,4.02579369,87.38,87.361,11.44669416]
[1773137495126,11.44439739,87.379,87.353,3.18228332]
[1773137496422,11.44439739,87.379,87.354,3.18228332]
[1773137496724,11.44439739,87.379,87.35,3.18228332]
[1773137498126,40.05539087,87.379,87.35,3.18228332]
[1773137499124,40.05539087,87.379,87.351,11.44806584]
[1773137499328,40.05539087,87.379,87.352,3.18228332]
[1773137499511,4.02579369,87.39,87.354,3.18228332]
[1773137500322,4.02579369,87.38,87.354,3.18228332]
[1773137501329,4.02579369,87.37,87.331,3.18228332]
[1773137501534,4.02579369,87.37,87.332,3.18228332]
[1773137501535,11.44570728,87.369,87.332,3.18228332]
[1773137502413,11.44570728,87.369,87.311,62.8]
[1773137502414,4.02579369,87.35,87.301,3.18228332]
[1773137502725,4.02579369,87.35,87.311,3.18228332]
[1773137504228,4.02579369,87.35,87.29,3.69383402]
[1773137504229,40.06474792,87.359,87.321,3.18228332]
[1773137505214,4.02579369,87.35,87.321,3.18228332]
[1773137505428,40.06474792,87.359,87.321,3.18228332]
[1773137505741,4.02579369,87.35,87.321,3.18228332]
[1773137506632,11.44808364,87.351,87.323,3.18228332]
[1773137507529,11.44808364,87.351,87.32,4.02579369]
[1773137507530,40.06474792,87.359,87.325,3.18228332]
[1773137508232,11.44701747,87.359,87.331,3.18228332]
[1773137508618,28.6143446,87.369,87.34,4.02579369]
[1773137508934,28.6143446,87.369,87.341,3.18228332]
[1773137509534,11.44583829,87.368,87.341,3.18228332]
[1773137513927,11.44583829,87.368,87.343,3.18228332]
[1773137514934,4.02579369,87.36,87.338,3.18228332]
[1773137515321,11.44583829,87.368,87.338,3.18228332]
[1773137516032,11.44583829,87.368,87.34,3.18228332]
[1773137517036,4.02579369,87.36,87.34,3.18228332]
[1773137518445,4.02579369,87.37,87.34,3.18228332]
[1773137520347,40.05997549,87.369,87.34,3.18228332]
[1773137520847,11.44570728,87.369,87.342,3.18228332]
[1773137522750,11.44570728,87.369,87.344,3.18228332]
[1773137524545,2.90280513,87.359,87.32,4.02579369]
[1773137525047,2.90280513,87.359,87.33,4.02579369]
[1773137526759,11.44714851,87.358,87.333,3.04659939]
[1773137527054,2.90280513,87.357,87.333,3.04659939]
[1773137528356,2.90280513,87.357,87.34,3.3]
[1773137529453,2.90280513,87.357,87.34,6.34659939]
[1773137531361,11.44741059,87.356,87.34,6.34659939]
[1773137531565,11.44741059,87.356,87.341,3.04659939]
[1773137531867,14.34930865,87.363,87.342,3.04659939]
[1773137532662,11.4459693,87.367,87.344,3.04659939]
[1773137532861,2.90280513,87.369,87.344,3.04659939]
[1773137533747,14.34851241,87.369,87.344,3.04659939]
[1773137533951,2.90280513,87.368,87.346,3.04659939]
[1773137535357,11.4459693,87.367,87.346,3.04659939]
[1773137535543,2.90280513,87.366,87.346,3.04659939]
[1773137537469,2.90280513,87.379,87.348,3.04659939]
[1773137537663,11.44493753,87.375,87.351,3.04659939]
[1773137538464,11.44493753,87.375,87.347,11.4485901]
[1773137538465,11.44440192,87.379,87.361,3.04659939]
[1773137539546,31.51022242,87.39,87.363,3.04659939]
[1773137539547,11.4430878,87.389,87.363,3.04659939]
[1773137540270,11.44261224,87.393,87.371,3.04659939]
[1773137541066,2.90280513,87.392,87.371,3.04659939]
[1773137541666,14.34563105,87.391,87.371,3.04659939]
[1773137541855,11.44282592,87.391,87.371,3.04659939]
[1773137542059,2.90280513,87.39,87.371,3.04659939]
[1773137542665,2.90280513,87.389,87.371,3.04659939]
[1773137543769,11.44321874,87.388,87.371,3.04659939]
[1773137543956,14.34602387,87.388,87.371,3.04659939]
[1773137544573,2.90280513,87.387,87.361,3.04659939]
[1773137545869,2.90280513,87.387,87.363,3.04659939]
[1773137546073,2.90280513,87.369,87.33,4.02579369]
[1773137547887,2.90280513,87.367,87.331,11.45068761]
[1773137548183,2.90280513,87.367,87.332,3.04659939]
[1773137548972,2.90280513,87.365,87.334,3.04659939]
[1773137549369,2.90280513,87.359,87.334,3.04659939]
[1773137550368,2.90280513,87.359,87.335,11.45016316]
[1773137550668,2.90280513,87.359,87.336,3.04659939]
[1773137551282,14.34985224,87.359,87.336,3.04659939]
[1773137551462,2.90280513,87.358,87.336,3.04659939]
[1773137553171,2.90280513,87.358,87.338,3.04659939]
[1773137554480,11.44727955,87.357,87.338,3.04659939]
[1773137555272,11.44727955,87.357,87.33,32.65268368]
[1773137555273,2.89788727,87.369,87.34,2.94017852]
[1773137555863,2.89788727,87.359,87.34,2.94017852]
[1773137558372,28.61426821,87.369,87.34,2.94017852]
[1773137558373,2.89788727,87.357,87.34,2.94017852]
[1773137559580,2.89788727,87.357,87.334,2.94017852]
[1773137560599,2.89788727,87.355,87.327,2.94017852]
[1773137560882,2.89788727,87.355,87.321,11.45199894]
[1773137560883,2.89788727,87.349,87.322,2.94017852]
[1773137562886,2.89788727,87.349,87.324,2.94017852]
[1773137563479,2.89788727,87.353,87.324,2.94017852]
[1773137563787,14.34509487,87.358,87.324,2.94017852]
[1773137563968,2.89788727,87.357,87.324,2.94017852]
[1773137564868,11.4472076,87.358,87.331,2.94017852]
[1773137565075,11.44670197,87.362,87.331,2.94017852]
[1773137565275,2.89788727,87.361,87.331,2.94017852]
[1773137565471,2.89788727,87.359,87.331,2.94017852]
[1773137568691,2.89788727,87.357,87.333,2.94017852]
[1773137571087,4.0282412,87.36,87.334,11.45029427]
[1773137571286,2.97586857,87.378,87.341,3.02050031]
[1773137571590,2.97586857,87.376,87.341,3.02050031]
[1773137572475,2.97586857,87.374,87.343,3.02050031]
[1773137572792,2.97586857,87.369,87.343,3.02050031]
[1773137573800,2.97586857,87.369,87.345,3.02050031]
[1773137574890,2.97586857,87.368,87.347,3.02050031]
[1773137577899,11.44572578,87.369,87.349,3.02050031]
[1773137578804,2.97586857,87.37,87.349,3.02050031]
[1773137580197,2.97586857,87.369,87.349,3.02050031]
[1773137582301,28.61164837,87.377,87.349,3.02050031]
[1773137582302,2.97586857,87.367,87.349,3.02050031]
[1773137583499,11.44610031,87.366,87.349,3.02050031]
[1773137583905,3.0311317,87.365,87.349,3.02050031]
[1773137584206,3.0311317,87.359,87.331,3.11935575]
[1773137584801,3.0311317,87.359,87.332,11.45046214]
[1773137585102,3.0311317,87.359,87.333,3.11935575]
[1773137586005,3.0311317,87.357,87.333,3.11935575]
[1773137586904,3.0311317,87.357,87.334,11.45029427]
[1773137587088,3.0311317,87.357,87.335,3.11935575]
[1773137589199,3.0311317,87.357,87.337,3.11935575]
[1773137589508,3.0311317,87.362,87.337,3.11935575]
[1773137591311,3.0311317,87.36,87.339,3.11935575]
[1773137594909,3.0311317,87.358,87.339,3.11935575]
[1773137595917,3.0311317,87.349,87.3,0.2]
[1773137596212,4.0282412,87.31,87.293,3.11935575]
[1773137597921,4.0282412,87.3,87.283,3.11935575]
[1773137598215,3.0311317,87.289,87.268,3.11935575]
[1773137598630,4.0282412,87.28,87.268,3.11935575]
[1773137598931,3.0311317,87.279,87.26,0.2]
[1773137600018,3.69383402,87.319,87.26,0.2]
[1773137600019,3.0311317,87.269,87.26,0.2]
[1773137602034,3.0311317,87.269,87.25,0.2]
[1773137603621,3.0311317,87.269,87.24,0.2]
[1773137603622,3.0311317,87.259,87.24,0.2]
[1773137603841,4.0282412,87.25,87.24,0.2]
[1773137604339,3.69383402,87.3,87.242,3.11935575]
[1773137604636,4.0282412,87.26,87.242,3.11935575]
[1773137605311,4.0282412,87.28,87.23,0.2]
[1773137605312,4.0282412,87.25,87.23,0.2]
[1773137605724,4.0282412,87.25,87.23,3.31935575]
[1773137607628,15.48959622,87.25,87.23,3.31935575]
[1773137608228,2.98281393,87.254,87.232,3.11935575]
[1773137608413,4.0282412,87.25,87.232,3.11935575]
[1773137608812,7.01023936,87.26,87.232,3.11935575]
[1773137609023,11.46013591,87.259,87.232,3.11935575]
[1773137609221,4.0282412,87.25,87.232,3.11935575]
[1773137609619,2.98199816,87.258,87.232,3.11935575]
[1773137609821,4.0282412,87.25,87.234,3.11935575]
[1773137612316,4.0282412,87.28,87.223,3.11935575]
[1773137612317,4.0282412,87.24,87.223,3.11935575]
[1773137612633,4.0282412,87.23,87.22,0.2]
[1773137613130,2.9810161,87.229,87.199,3.11935575]
[1773137613316,4.0282412,87.22,87.2,11.4678899]
[1773137613524,4.0282412,87.21,87.201,3.11935575]
[1773137613725,4.0282412,87.21,87.193,3.17257826]
[1773137615540,11.46575901,87.217,87.196,3.43868786]
[1773137615916,4.0282412,87.21,87.196,3.43868786]
[1773137617736,4.0426646,87.21,87.196,3.43868786]
[1773137617939,11.46575901,87.217,87.196,3.43868786]
[1773137618120,4.0426646,87.22,87.197,3.17257826]
[1773137618322,4.0426646,87.22,87.196,11.73448576]
[1773137618323,11.463026,87.237,87.201,3.17257826]
[1773137618528,14.44240726,87.237,87.201,3.17257826]
[1773137618830,7.02204586,87.22,87.197,3.17257826]
[1773137619220,4.0426646,87.22,87.197,3.17257826]
[1773137619826,2.97938126,87.226,87.199,3.17257826]
[1773137620229,14.44395222,87.226,87.199,3.17257826]
[1773137620842,4.0426646,87.22,87.199,3.17257826]
[1773137621042,11.46457096,87.226,87.199,3.17257826]
[1773137621340,11.463026,87.237,87.219,3.17257826]
[1773137622647,4.0426646,87.23,87.198,3.17257826]
[1773137622833,2.97850473,87.236,87.201,3.17257826]
[1773137623846,4.0426646,87.23,87.203,3.17257826]
[1773137624146,11.46328881,87.235,87.203,3.17257826]
[1773137624342,11.46279554,87.239,87.203,3.17257826]
[1773137624548,14.44087697,87.239,87.203,3.17257826]
[1773137627151,2.97766779,87.238,87.205,3.17257826]
[1773137627444,11.46279554,87.239,87.198,3.17257826]
[1773137627445,2.97746453,87.219,87.198,3.17257826]
[1773137627652,40.11970357,87.239,87.196,0.2661096]
[1773137627653,7.02012913,87.21,87.196,0.2661096]
[1773137631263,4.0426646,87.21,87.196,0.2661096]
[1773137631962,11.46570297,87.217,87.197,2.93463883]
[1773137632866,11.46570297,87.217,87.198,14.40279176]
[1773137633462,4.0426646,87.22,87.199,2.93463883]
[1773137633648,11.46539171,87.219,87.199,2.93463883]
[1773137636861,11.46539171,87.219,87.201,2.93463883]
[1773137639266,11.46486591,87.223,87.201,2.93463883]
[1773137639448,4.0426646,87.22,87.201,2.93463883]
[1773137640670,11.46437778,87.227,87.203,2.93463883]
[1773137641062,11.4639041,87.231,87.203,2.93463883]
[1773137641847,2.97485222,87.235,87.21,4.0426646]
[1773137642057,11.45750982,87.279,87.22,4.0426646]
[1773137642242,7.0173459,87.26,87.221,2.93463883]
[1773137642446,2.9746813,87.259,87.221,2.93463883]
[1773137643046,4.0426646,87.25,87.221,2.93463883]
[1773137643262,2.97451234,87.229,87.205,2.93463883]
[1773137643775,4.0426646,87.23,87.205,2.93463883]
[1773137644077,4.0426646,87.23,87.207,3.14996287]
[1773137644674,4.0426646,87.24,87.211,3.14996287]
[1773137645872,4.0426646,87.23,87.213,3.14996287]
[1773137646175,14.38664216,87.239,87.213,3.14996287]
[1773137646370,11.46276321,87.239,87.213,3.14996287]
[1773137646969,11.46105533,87.252,87.213,3.14996287]
[1773137647154,4.0426646,87.23,87.213,3.14996287]
[1773137647354,2.92387895,87.237,87.212,11.46631197]
[1773137647766,4.0426646,87.24,87.213,3.14996287]
[1773137647959,4.0426646,87.24,87.196,0.2661096]
[1773137647960,11.46276321,87.239,87.215,3.14996287]
[1773137649052,4.0426646,87.24,87.215,3.14996287]
[1773137649674,11.46226395,87.243,87.215,3.14996287]
[1773137650270,57.29169293,87.273,87.196,0.2661096]
[1773137650271,4.0426646,87.26,87.22,4.0426646]
[1773137650457,97.38548611,87.282,87.221,3.14996287]
[1773137650458,4.0426646,87.25,87.221,3.14996287]
[1773137650858,2.92387895,87.254,87.221,3.14996287]
[1773137651071,4.0426646,87.25,87.221,3.14996287]
[1773137651677,2.92387895,87.251,87.221,3.14996287]
[1773137651857,4.0426646,87.25,87.221,3.14996287]
[1773137652270,2.92387895,87.249,87.221,3.14996287]
[1773137652452,2.92387895,87.247,87.221,3.14996287]
[1773137653060,2.92387895,87.239,87.219,3.14996287]
[1773137653372,2.92387895,87.239,87.208,3.14996287]
[1773137653580,2.92387895,87.239,87.201,11.46775839]
[1773137653581,2.92387895,87.229,87.202,3.14996287]
[1773137653772,40.11553273,87.248,87.202,3.14996287]
[1773137653773,2.92387895,87.239,87.202,3.14996287]
[1773137654579,14.38668868,87.239,87.203,40.13623384]
[1773137654760,2.92387895,87.245,87.211,3.14996287]
[1773137654965,11.46210627,87.244,87.211,3.14996287]
[1773137655166,14.38598522,87.244,87.211,3.14996287]
[1773137655372,4.0426646,87.24,87.211,3.14996287]
[1773137655773,2.92387895,87.239,87.211,3.14996287]
[1773137655964,4.0426646,87.24,87.211,3.14996287]
[1773137656483,2.92387895,87.243,87.211,3.14996287]
[1773137656982,11.46236904,87.242,87.213,3.14996287]
[1773137658781,2.92387895,87.241,87.213,3.14996287]
[1773137658980,2.92387895,87.241,87.215,3.14996287]
[1773137659368,2.92387895,87.239,87.215,3.14996287]
[1773137659775,2.92387895,87.239,87.214,11.46604902]
[1773137659975,15.50529642,87.24,87.197,3.14996287]
[1773137659976,2.92387895,87.229,87.197,3.14996287]
[1773137660175,15.50529642,87.24,87.201,3.14996287]
[1773137660367,2.92387895,87.248,87.211,3.14996287]
[1773137661169,2.92387895,87.246,87.213,3.14996287]
[1773137664284,2.92387895,87.246,87.221,3.14996287]
[1773137665190,2.92387895,87.252,87.221,3.14996287]
[1773137665377,2.92387895,87.249,87.221,3.14996287]
[1773137667596,2.92387895,87.247,87.222,3.14996287]
[1773137668989,2.92387895,87.247,87.217,14.61552643]
[1773137669191,2.92387895,87.247,87.218,3.14996287]
[1773137670391,2.92387895,87.259,87.221,3.14996287]
[1773137672694,2.92387895,87.239,87.214,3.14996287]
[1773137675187,2.92384769,87.237,87.214,3.14996287]
[1773137676292,2.92384769,87.237,87.201,28.66927028]
[1773137676293,2.92384769,87.237,87.208,3.05608352]
[1773137676498,2.92384769,87.237,87.21,3.05608352]
[1773137676701,2.92384769,87.237,87.211,3.05608352]
[1773137677707,2.92384769,87.237,87.213,3.05608352]
[1773137678713,2.92384769,87.237,87.215,3.05608352]
[1773137679316,3.69383402,87.279,87.231,3.05608352]
[1773137679317,2.92384769,87.259,87.231,3.05608352]
[1773137680036,2.92384769,87.259,87.214,11.46604902]
[1773137680037,2.92384769,87.278,87.241,3.05608352]
[1773137680199,2.92384769,87.278,87.251,3.05608352]
[1773137681516,11.45777237,87.277,87.251,14.51724499]
[1773137681711,11.45777237,87.277,87.252,3.05608352]
[1773137682422,14.38162006,87.277,87.252,3.05608352]
[1773137682819,2.92384769,87.289,87.252,3.05608352]
[1773137683524,2.92384769,87.288,87.261,3.05608352]
[1773137684326,2.92384769,87.288,87.25,4.03971894]
[1773137684327,4.03971894,87.28,87.25,3.05608352]
[1773137684506,2.92384769,87.279,87.251,3.05608352]
[1773137685612,2.92384769,87.279,87.253,3.05608352]
[1773137685927,11.4576411,87.278,87.253,3.05608352]
[1773137687319,2.96841997,87.277,87.253,3.05608352]
[1773137687519,2.96841997,87.277,87.248,2.94156526]
[1773137688712,4.03971894,87.28,87.242,28.65573903]
[1773137688713,2.968227,87.275,87.25,2.94156526]
[1773137691418,2.96803844,87.269,87.25,2.94156526]
[1773137697535,2.96741176,87.267,87.241,11.46250042]
[1773137697718,2.96741176,87.267,87.242,2.94156526]
[1773137697923,2.96741176,87.273,87.242,2.94156526]
[1773137699237,2.9673263,87.269,87.242,2.94156526]
[1773137699534,2.96724182,87.267,87.244,2.94156526]
[1773137702130,2.96707576,87.265,87.244,2.94156526]
[1773137703524,2.91149754,87.249,87.215,3.05160507]
[1773137703731,2.91149754,87.249,87.187,102.5]
[1773137703732,2.91149754,87.239,87.209,14.51828439]
[1773137704239,2.91149754,87.237,87.21,14.51818]
[1773137704431,2.91149754,87.237,87.211,3.05160507]
[1773137704631,2.91149754,87.253,87.221,3.05160507]
[1773137704833,11.46105533,87.252,87.221,3.05160507]
[1773137705349,11.46105533,87.252,87.231,3.05160507]
[1773137706740,2.91149754,87.266,87.233,3.05160507]
[1773137706943,2.91149754,87.268,87.233,3.05160507]
[1773137707448,2.91149754,87.249,87.227,3.05160507]
[1773137707942,2.91149754,87.249,87.213,28.66520967]
[1773137707943,2.91149754,87.249,87.214,11.46604902]
[1773137708244,2.91149754,87.249,87.215,3.05160507]
[1773137710144,2.91149754,87.257,87.221,3.05160507]
[1773137710347,11.46101277,87.253,87.221,3.05160507]
[1773137711450,14.37251031,87.253,87.221,3.05160507]
[1773137711647,4.03971894,87.25,87.221,3.05160507]
[1773137711949,2.91149754,87.249,87.221,3.05160507]
[1773137712859,4.03971894,87.25,87.222,3.05160507]
[1773137712860,2.91149754,87.247,87.222,3.05160507]
[1773137713456,2.91149754,87.247,87.216,3.05160507]
[1773137713457,4.03971894,87.24,87.216,3.05160507]
[1773137713631,4.03971894,87.23,87.201,3.05160507]
[1773137713832,2.91149754,87.234,87.201,3.05160507]
[1773137714754,11.46236929,87.242,87.211,3.05160507]
[1773137715061,2.91149754,87.249,87.211,3.05160507]
[1773137716654,2.91149754,87.239,87.211,3.05160507]
[1773137718654,2.91149754,87.237,87.213,3.05160507]
[1773137719641,2.91149754,87.237,87.202,28.66906722]
[1773137719642,11.46289461,87.238,87.215,3.05160507]
[1773137719846,2.91149754,87.245,87.215,3.05160507]
[1773137719847,11.46245347,87.242,87.215,3.05160507]
[1773137721741,11.46245347,87.242,87.217,3.05160507]
[1773137722156,32.69301406,87.25,87.217,3.05160507]
[1773137722157,2.91149754,87.249,87.217,3.05160507]
[1773137722558,11.46079797,87.254,87.221,3.05160507]
[1773137722751,4.03971894,87.24,87.217,3.05160507]
[1773137722951,2.91149754,87.239,87.217,3.05160507]
[1773137723860,11.46289461,87.238,87.217,3.05160507]
[1773137725364,2.91149754,87.237,87.212,3.05160507]
[1773137726363,2.91149754,87.235,87.212,3.05160507]
[1773137726867,2.91149754,87.229,87.207,3.05160507]
[1773137729963,2.91149754,87.229,87.209,3.05160507]
[1773137730659,11.46372654,87.232,87.209,3.05160507]
[1773137731075,2.91149754,87.232,87.21,11.46657493]
[1773137731465,2.91149754,87.232,87.211,3.05160507]
[1773137733279,4.03971894,87.24,87.213,3.05160507]
[1773137733477,2.91149754,87.248,87.213,3.05160507]
[1773137733677,2.96476805,87.246,87.213,3.05160507]
[1773137734781,14.42668785,87.245,87.215,2.94046023]
[1773137735863,11.46197489,87.245,87.221,2.94046023]
[1773137737482,2.96455144,87.251,87.223,2.94046023]
[1773137738472,4.03971894,87.25,87.223,2.94046023]
[1773137738673,2.96449883,87.249,87.223,2.94046023]
[1773137738871,2.96449883,87.249,87.201,62.8]
[1773137738872,2.96449883,87.229,87.202,2.94046023]
[1773137739077,4.03971894,87.23,87.202,2.94046023]
[1773137739577,11.46407731,87.229,87.204,2.94046023]
[1773137739985,4.04108703,87.24,87.204,2.94046023]
[1773137740391,7.00553386,87.24,87.204,2.94046023]
[1773137740585,4.04108703,87.24,87.204,2.94046023]
[1773137740797,11.46310302,87.237,87.204,2.94046023]
[1773137741093,14.42749844,87.237,87.205,11.46723238]
[1773137741285,14.42749844,87.237,87.206,2.94046023]
[1773137743394,14.42749844,87.237,87.207,11.46696939]
[1773137743591,14.42749844,87.237,87.208,2.94046023]
[1773137743885,2.96424472,87.236,87.208,2.94046023]
[1773137745090,4.04108703,87.23,87.208,2.94046023]
[1773137745398,2.96419563,87.229,87.208,2.94046023]
[1773137745895,2.96409915,87.227,87.208,2.94046023]
[1773137746184,2.96409915,87.219,87.198,2.89908299]
[1773137746988,2.96405174,87.227,87.198,2.89908299]
[1773137747390,2.96405174,87.225,87.2,2.89908299]
[1773137748693,11.46473447,87.224,87.2,2.89908299]
[1773137748887,11.46473447,87.224,87.201,11.46775839]
[1773137749094,11.46402181,87.23,87.202,2.89908299]
[1773137751013,2.96395854,87.231,87.204,2.89908299]
[1773137751304,2.96386747,87.237,87.204,2.89908299]
[1773137752490,2.96382272,87.229,87.206,2.89908299]
[1773137753907,11.46259569,87.241,87.206,2.89908299]
[1773137754083,4.04108703,87.24,87.211,2.89908299]
[1773137754283,2.96373475,87.239,87.211,2.89908299]
[1773137754685,2.96369153,87.237,87.213,2.89908299]
[1773137755701,11.46315741,87.236,87.213,2.89908299]
[1773137755916,2.9636488,87.235,87.208,2.89908299]
[1773137756412,2.9636488,87.235,87.207,14.36597349]
[1773137756586,2.9636488,87.235,87.208,2.89908299]
[1773137758203,2.9635648,87.233,87.21,2.89908299]
[1773137759789,11.46368305,87.232,87.21,2.89908299]
[1773137760411,2.96348273,87.267,87.221,2.89908299]
[1773137760595,2.96344239,87.259,87.221,2.89908299]
[1773137762091,4.04108703,87.26,87.223,2.89908299]
[1773137762092,2.96340253,87.257,87.223,2.89908299]
[1773137764713,2.96324758,87.274,87.241,2.88922427]
[1773137765810,14.42150747,87.273,87.243,2.88922427]
[1773137766317,2.96320995,87.275,87.241,2.88922427]
[1773137766694,2.96317275,87.269,87.241,2.88922427]
[1773137767911,11.45895402,87.268,87.242,2.88922427]
[1773137768711,14.42205365,87.268,87.242,2.88922427]
[1773137769311,2.96309963,87.267,87.242,2.88922427]
[1773137770105,2.96306369,87.249,87.227,11.46429723]
[1773137772023,2.96299306,87.247,87.223,2.88922427]
[1773137775538,2.96299306,87.247,87.224,14.35395874]
[1773137775831,2.96299306,87.247,87.225,2.88922427]
[1773137777132,2.96299306,87.247,87.213,28.66545125]
[1773137777609,2.96299306,87.247,87.213,40.13163175]
[1773137777811,3.14347795,87.245,87.213,40.13163175]
[1773137778416,3.14347795,87.245,87.213,11.4661805]